[Event "Fall GM Norm Invitational 2020"]
[Site "Charlotte"]
[Date "2020.10.03"]
[Round "5.2"]
[White "Mishra, Abhimanyu"]
[Black "Ostrovskiy, Aleksandr"]
[Result "1/2-1/2"]
[ECO "C18"]
[WhiteElo "2342"]
[BlackElo "2427"]
[Annotator "ChessBase"]
[PlyCount "121"]
[EventDate "2020.09.30"]
[EventType "tourn"]
[EventCountry "USA"]
[SourceTitle "playchess.com"]
[Source "ChessBase"]
[SourceQuality "1"]
[TimeControl "5400+30"]

1. e4 {[%emt 1:30:30]} e6 {[%emt 1:30:30]} 2. d4 {[%emt 0:00:30]} d5 {[%emt 0:00:30]} 3. Nc3 {[%emt 0:00:30]} Bb4 {[%emt 0:00:30]} 4. e5 {[%emt 0:00:30]} c5 {[%emt 0:00:30]} 5. a3 {[%emt 0:00:30]} Bxc3+ {[%emt 0:00:30]} 6. bxc3 {[%emt 0:00:30]} Ne7 {[%emt 0:00:30]} 7. Qg4 {[%emt 0:00:30]} Qc7 {[%emt 0:00:30]} 8. Bd3 {[%emt 0:00:30]} c4 {[%emt 0:00:30]} 9. Be2 {[%emt 0:00:30]} Qa5 {[%emt 0:00:30]} 10. Bd2 {[%emt 0:00:30]} Nf5 {[%emt 0:00:30]} 11. Nf3 {[%emt 0:00:30]} Qa4 {[%emt 0:00:30]} 12. Ra2 {[%emt 0:00:30]} Nc6 {[%emt 0:00:30]} 13. O-O {[%emt 0:00:30]} h6 {[%emt 0:00:30]} 14. Qh5 {[%emt 0:00:30]} Bd7 {[%emt 0:00:30]} 15. h4 {[%emt 0:00:30]} Rf8 {[%emt 0:00:30]} 16. Qg4 {[%emt 0:00:30]} O-O-O {[%emt 0:00:30]} 17. h5 {[%emt 0:00:30]} Qa5 {[%emt 0:00:30]} 18. Rd1 {[%emt 0:00:30]} f6 {[%emt 0:00:30]} 19. exf6 {[%emt 0:00:30]} Rxf6 {[%emt 0:00:30]} 20. Ne5 {[%emt 0:00:30]} Nxe5 {[%emt 0:00:30]} 21. dxe5 {[%emt 0:00:30]} Rf7 {[%emt 0:00:30]} 22. Raa1 {[%emt 0:00:30]} Rdf8 {[%emt 0:00:30]} 23. Qh3 {[%emt 0:00:30]} Ba4 {[%emt 0:00:30]} 24. Rac1 {[%emt 0:00:30]} Qc5 {[%emt 0:00:30]} 25. Bg4 {[%emt 0:00:30]} Kb8 {[%emt 0:00:30]} 26. Bxf5 {[%emt 0:00:30]} Rxf5 {[%emt 0:00:30]} 27. Be3 {[%emt 0:00:30]} Qc7 {[%emt 0:00:30]} 28. f4 {[%emt 0:00:30]} b6 {[%emt 0:00:30]} 29. Rf1 {[%emt 0:00:30]} Ka8 {[%emt 0:00:30]} 30. Rf2 {[%emt 0:00:30]} Bd7 {[%emt 0:00:30]} 31. Rcf1 {[%emt 0:00:30]} R5f7 {[%emt 0:00:30]} 32. Bd4 {[%emt 0:00:30]} Qc8 {[%emt 0:00:30]} 33. Rf3 {[%emt 0:00:30]} Rg8 {[%emt 0:00:30]} 34. Qg4 {[%emt 0:00:30]} Rf5 {[%emt 0:00:30]} 35. Qh4 {[%emt 0:00:30]} g6 {[%emt 0:00:30]} 36. hxg6 {[%emt 0:00:30]} Rxg6 {[%emt 0:00:30]} 37. Rg3 {[%emt 0:00:30]} Rxg3 {[%emt 0:00:30]} 38. Qxg3 {[%emt 0:00:30]} Qf8 {[%emt 0:00:30]} 39. Qh4 {[%emt 0:00:30]} h5 {[%emt 0:00:30]} 40. g3 {[%emt 0:00:30]} Ba4 {[%emt 0:00:30]} 41. Rf2 {[%emt 0:00:30]} Kb7 {[%emt 0:00:30]} 42. Kg2 {[%emt 0:00:30]} Kc7 {[%emt 0:00:30]} 43. Kf3 {[%emt 0:00:30]} Qxa3 {[%emt 0:00:30]} 44. Rg2 {[%emt 0:00:30]} Qc1 {[%emt 0:00:30]} 45. Qe7+ {[%emt 0:00:30]} Bd7 {[%emt 0:00:30]} 46. Rh2 {[%emt 0:00:30]} Qd1+ {[%emt 0:00:30]} 47. Kg2 {[%emt 0:00:30]} Qxc2+ {[%emt 0:00:30]} 48. Kh3 {[%emt 0:00:30]} Qd1 {[%emt 0:00:30]} 49. Ra2 {[%emt 0:00:30]} Qh1+ {[%emt 0:00:30]} 50. Rh2 {[%emt 0:00:30]} Qd1 {[%emt 0:00:30]} 51. Ra2 {[%emt 0:00:30]} Qh1+ {[%emt 0:00:30]} 52. Rh2 {[%emt 0:00:30]} Qf1+ {[%emt 0:00:30]} 53. Rg2 {[%emt 0:00:30]} h4 {[%emt 0:00:30]} 54. Qa3 {[%emt 0:00:30]} hxg3 {[%emt 0:00:30]} 55. Qxa7+ {[%emt 0:00:30]} Kd8 {[%emt 0:00:30]} 56. Qxb6+ {[%emt 0:00:30]} Ke8 {[%emt 0:00:30]} 57. Qb8+ {[%emt 0:00:30]} Kf7 {[%emt 0:00:30]} 58. Qc7 {[%emt 0:00:30]} Ke8 {[%emt 0:00:30]} 59. Qb8+ {[%emt 0:00:30]} Kf7 60. Qc7 {[%emt 0:00:30]} Ke8 {[%emt 0:01:00]} 61. Qb8+ {[%emt 0:00:30]} 1/2-1/2

[Event "Fall GM Norm Invitational 2020"]
[Site "Charlotte"]
[Date "2020.10.03"]
[Round "5.4"]
[White "Daggupati, Balaji"]
[Black "Fernandez, Daniel"]
[Result "1-0"]
[ECO "B86"]
[WhiteElo "2331"]
[BlackElo "2470"]
[Annotator "ChessBase"]
[PlyCount "65"]
[EventDate "2020.09.30"]
[EventType "tourn"]
[EventCountry "USA"]
[SourceTitle "playchess.com"]
[Source "ChessBase"]
[SourceQuality "1"]
[TimeControl "5400+30"]

1. e4 {[%emt 1:30:30]} c5 {[%emt 1:30:30]} 2. Nf3 {[%emt 0:00:30]} d6 {[%emt 0:00:30]} 3. d4 {[%emt 0:00:30]} cxd4 {[%emt 0:00:30]} 4. Nxd4 {[%emt 0:00:30]} Nf6 {[%emt 0:00:30]} 5. Nc3 {[%emt 0:00:30]} a6 {[%emt 0:00:30]} 6. Bc4 {[%emt 0:00:30]} e6 {[%emt 0:00:30]} 7. Bb3 {[%emt 0:00:30]} Nbd7 {[%emt 0:00:30]} 8. f4 {[%emt 0:00:30]} Nc5 {[%emt 0:00:30]} 9. e5 {[%emt 0:00:30]} Nfd7 {[%emt 0:00:30]} 10. exd6 {[%emt 0:00:30]} Nf6 {[%emt 0:00:30]} 11. Qf3 {[%emt 0:00:30]} Bxd6 {[%emt 0:00:30]} 12. Be3 {[%emt 0:00:30]} O-O {[%emt 0:00:30]} 13. O-O-O {[%emt 0:00:30]} Qc7 {[%emt 0:00:30]} 14. Kb1 {[%emt 0:00:30]} Nxb3 {[%emt 0:00:30]} 15. Nxb3 {[%emt 0:00:30]} Bd7 {[%emt 0:00:30]} 16. Rhf1 {[%emt 0:00:30]} Bc6 {[%emt 0:00:30]} 17. Qh3 {[%emt 0:00:30]} b5 {[%emt 0:00:30]} 18. Bd4 {[%emt 0:00:30]} b4 {[%emt 0:00:30]} 19. Bxf6 {[%emt 0:00:30]} gxf6 {[%emt 0:00:30]} 20. Rd3 {[%emt 0:00:30]} f5 {[%emt 0:00:30]} 21. Nd4 {[%emt 0:00:30]} Bxf4 {[%emt 0:00:30]} 22. Nxc6 {[%emt 0:00:30]} bxc3 {[%emt 0:00:30]} 23. Qh4 {[%emt 0:00:30]} Qxc6 {[%emt 0:00:30]} 24. Qxf4 {[%emt 0:00:30]} Rfb8 25. b3 {[%emt 0:00:30]} Kf8 {[%emt 0:01:00]} 26. Qh6+ {[%emt 0:00:30]} Ke8 {[%emt 0:00:30]} 27. Rg3 Qb5 {[%emt 0:00:30]} 28. Re1 {[%emt 0:01:00]} Qd5 {[%emt 0:00:30]} 29. Rxc3 {[%emt 0:00:30]} Rd8 {[%emt 0:00:30]} 30. Rg3 {[%emt 0:00:30]} Rd6 {[%emt 0:00:30]} 31. Qf6 {[%emt 0:00:30]} Kd7 {[%emt 0:00:30]} 32. Qxf7+ {[%emt 0:00:30]} Kc6 {[%emt 0:00:30]} 33. Rd3 {[%emt 0:00:30]} 1-0

[Event "Fall GM Norm Invitational 2020"]
[Site "Charlotte"]
[Date "2020.10.03"]
[Round "5.5"]
[White "Liang, Jason"]
[Black "Stremavicius, Titas"]
[Result "1/2-1/2"]
[ECO "A80"]
[WhiteElo "2367"]
[BlackElo "2517"]
[Annotator "ChessBase"]
[PlyCount "97"]
[EventDate "2020.09.30"]
[EventType "tourn"]
[EventCountry "USA"]
[SourceTitle "playchess.com"]
[Source "ChessBase"]
[SourceQuality "1"]
[TimeControl "5400+30"]

1. d4 {[%emt 1:30:30]} f5 {[%emt 1:30:30]} 2. Qd3 {[%emt 0:00:30]} d5 {[%emt 0:00:30]} 3. c4 {[%emt 0:00:30]} e6 {[%emt 0:00:30]} 4. Nf3 {[%emt 0:00:30]} c6 {[%emt 0:00:30]} 5. Bf4 {[%emt 0:00:30]} Nf6 {[%emt 0:00:30]} 6. Nc3 {[%emt 0:00:30]} Bd6 {[%emt 0:00:30]} 7. g3 {[%emt 0:00:30]} O-O {[%emt 0:00:30]} 8. Bg2 {[%emt 0:00:30]} Qe7 {[%emt 0:00:30]} 9. O-O {[%emt 0:00:30]} Nbd7 {[%emt 0:00:30]} 10. cxd5 {[%emt 0:00:30]} cxd5 {[%emt 0:00:30]} 11. Bxd6 {[%emt 0:00:30]} Qxd6 {[%emt 0:00:30]} 12. e3 {[%emt 0:00:30]} a6 {[%emt 0:00:30]} 13. Rfc1 {[%emt 0:00:30]} b5 {[%emt 0:00:30]} 14. Rc2 {[%emt 0:00:30]} Bb7 {[%emt 0:00:30]} 15. Rac1 {[%emt 0:00:30]} Rfc8 {[%emt 0:00:30]} 16. Ne2 {[%emt 0:00:30]} Ne4 {[%emt 0:00:30]} 17. Rxc8+ {[%emt 0:00:30]} Rxc8 {[%emt 0:00:30]} 18. Rxc8+ {[%emt 0:00:30]} Bxc8 {[%emt 0:00:30]} 19. Qc2 {[%emt 0:00:30]} Bb7 {[%emt 0:00:30]} 20. Nf4 {[%emt 0:00:30]} Kf7 {[%emt 0:00:30]} 21. Nd3 {[%emt 0:00:30]} Ke7 {[%emt 0:00:30]} 22. Nfe5 {[%emt 0:00:30]} Nef6 {[%emt 0:00:30]} 23. Qc3 {[%emt 0:00:30]} Qb6 {[%emt 0:00:30]} 24. b4 {[%emt 0:00:30]} Nxe5 {[%emt 0:00:30]} 25. Nxe5 {[%emt 0:00:30]} Nd7 {[%emt 0:00:30]} 26. Nd3 {[%emt 0:00:30]} Qc6 {[%emt 0:00:30]} 27. Qd2 {[%emt 0:00:30]} Bc8 {[%emt 0:00:30]} 28. h4 {[%emt 0:00:30]} Qc7 {[%emt 0:00:30]} 29. Kh2 {[%emt 0:00:30]} Nb6 {[%emt 0:00:30]} 30. Nc5 {[%emt 0:00:30]} Nd7 {[%emt 0:00:30]} 31. Nd3 {[%emt 0:00:30]} Nb6 {[%emt 0:00:30]} 32. Nf4 {[%emt 0:00:30]} Qc4 {[%emt 0:00:30]} 33. Ne2 {[%emt 0:00:30]} Bd7 {[%emt 0:00:30]} 34. Kg1 {[%emt 0:00:30]} Be8 {[%emt 0:00:30]} 35. Bf1 {[%emt 0:00:30]} Na4 {[%emt 0:00:30]} 36. e4 {[%emt 0:00:30]} dxe4 {[%emt 0:00:30]} 37. Qg5+ {[%emt 0:00:30]} Kd6 {[%emt 0:00:30]} 38. Qxg7 {[%emt 0:00:30]} Bc6 {[%emt 0:00:30]} 39. Qxh7 {[%emt 0:00:30]} e3 {[%emt 0:00:30]} 40. fxe3 {[%emt 0:00:30]} Qd5 {[%emt 0:00:30]} 41. Qh6 {[%emt 0:00:30]} Qh1+ {[%emt 0:00:30]} 42. Kf2 {[%emt 0:00:30]} Nb2 {[%emt 0:00:30]} 43. Qf8+ {[%emt 0:00:30]} Kd7 {[%emt 0:00:30]} 44. Qg7+ {[%emt 0:00:30]} Kc8 {[%emt 0:00:30]} 45. Qf8+ {[%emt 0:00:30]} Kd7 {[%emt 0:00:30]} 46. Qf7+ {[%emt 0:00:30]} Kd6 {[%emt 0:00:30]} 47. Qf8+ {[%emt 0:00:30]} Kd7 {[%emt 0:00:30]} 48. Qg7+ {[%emt 0:00:30]} Kc8 {[%emt 0:00:30]} 49. Qf8+ {[%emt 0:00:30]} 1/2-1/2

[Event "Fall GM Norm Invitational 2020"]
[Site "Charlotte"]
[Date "2020.10.03"]
[Round "6.1"]
[White "Gauri, Shankar"]
[Black "Daggupati, Balaji"]
[Result "0-1"]
[ECO "A13"]
[WhiteElo "2353"]
[BlackElo "2331"]
[Annotator "ChessBase"]
[PlyCount "86"]
[EventDate "2020.09.30"]
[EventType "tourn"]
[EventCountry "USA"]
[SourceTitle "playchess.com"]
[Source "ChessBase"]
[SourceQuality "1"]
[TimeControl "5400+30"]

1. Nf3 {[%emt 1:30:30]} d5 2. c4 {[%emt 0:00:30]} e6 {[%emt 1:31:00]} 3. g3 {[%emt 0:00:30]} dxc4 4. Qa4+ {[%emt 0:00:30]} Nd7 {[%emt 0:01:00]} 5. Qxc4 {[%emt 0:00:30]} a6 {[%emt 0:00:30]} 6. Bg2 {[%emt 0:00:30]} b5 {[%emt 0:00:30]} 7. Qb3 {[%emt 0:00:30]} Bb7 {[%emt 0:00:30]} 8. O-O {[%emt 0:00:30]} c5 {[%emt 0:00:30]} 9. d3 {[%emt 0:00:30]} Ngf6 {[%emt 0:00:30]} 10. a4 {[%emt 0:00:30]} Bd5 {[%emt 0:00:30]} 11. Qc2 {[%emt 0:00:30]} Be7 {[%emt 0:00:30]} 12. Nc3 {[%emt 0:00:30]} Bc6 {[%emt 0:00:30]} 13. Ng5 {[%emt 0:00:30]} Bxg2 {[%emt 0:00:30]} 14. Kxg2 {[%emt 0:00:30]} O-O {[%emt 0:00:30]} 15. Qb3 {[%emt 0:00:30]} h6 {[%emt 0:00:30]} 16. Nf3 {[%emt 0:00:30]} c4 {[%emt 0:00:30]} 17. dxc4 {[%emt 0:00:30]} Nc5 {[%emt 0:00:30]} 18. Qa2 {[%emt 0:00:30]} b4 {[%emt 0:00:30]} 19. Nd1 {[%emt 0:00:30]} b3 {[%emt 0:00:30]} 20. Qb1 {[%emt 0:00:30]} Nfe4 {[%emt 0:00:30]} 21. Be3 {[%emt 0:00:30]} Qa5 {[%emt 0:00:30]} 22. Bxc5 {[%emt 0:00:30]} Nxc5 {[%emt 0:00:30]} 23. Ne3 {[%emt 0:00:30]} Qb4 {[%emt 0:00:30]} 24. a5 {[%emt 0:00:30]} Rfd8 {[%emt 0:00:30]} 25. Qe1 {[%emt 0:00:30]} Qb7 {[%emt 0:00:30]} 26. Qc1 {[%emt 0:00:30]} Bf6 {[%emt 0:00:30]} 27. Kg1 {[%emt 0:00:30]} h5 28. h4 {[%emt 0:00:30]} Qb4 {[%emt 0:01:00]} 29. Ng2 {[%emt 0:00:30]} Na4 {[%emt 0:00:30]} 30. Rb1 {[%emt 0:00:30]} Rac8 {[%emt 0:00:30]} 31. Nf4 {[%emt 0:00:30]} Rxc4 {[%emt 0:00:30]} 32. Qe3 Re4 {[%emt 0:00:30]} 33. Qa7 {[%emt 0:01:00]} Qxa5 {[%emt 0:00:30]} 34. Rfd1 {[%emt 0:00:30]} Rf8 {[%emt 0:00:30]} 35. Rd3 {[%emt 0:00:30]} Rb4 {[%emt 0:00:30]} 36. Rd6 {[%emt 0:00:30]} Nxb2 {[%emt 0:00:30]} 37. Rxa6 {[%emt 0:00:30]} Qf5 {[%emt 0:00:30]} 38. Re1 {[%emt 0:00:30]} Bc3 {[%emt 0:00:30]} 39. Ra5 {[%emt 0:00:30]} Qc2 {[%emt 0:00:30]} 40. Rf1 {[%emt 0:00:30]} Rxf4 {[%emt 0:00:30]} 41. gxf4 {[%emt 0:00:30]} Bxa5 {[%emt 0:00:30]} 42. Qxa5 {[%emt 0:00:30]} Qxe2 {[%emt 0:00:30]} 43. Qxh5 {[%emt 0:00:30]} Nd3 {[%emt 0:00:30]} 0-1

[Event "Fall GM Norm Invitational 2020"]
[Site "Charlotte"]
[Date "2020.10.03"]
[Round "6.2"]
[White "Fernandez, Daniel"]
[Black "Liang, Jason"]
[Result "1-0"]
[ECO "B13"]
[WhiteElo "2470"]
[BlackElo "2367"]
[Annotator "ChessBase"]
[PlyCount "129"]
[EventDate "2020.09.30"]
[EventType "tourn"]
[EventCountry "USA"]
[SourceTitle "playchess.com"]
[Source "ChessBase"]
[SourceQuality "1"]
[TimeControl "5400+30"]

1. e4 {[%emt 1:30:30]} c6 {[%emt 1:30:30]} 2. d4 {[%emt 0:00:30]} d5 3. exd5 {[%emt 0:00:30]} cxd5 4. Bd3 {[%emt 0:00:30]} Nc6 {[%emt 0:01:30]} 5. c3 Nf6 {[%emt 0:00:30]} 6. Bf4 {[%emt 0:01:00]} g6 {[%emt 0:00:30]} 7. Na3 {[%emt 0:00:30]} Nh5 {[%emt 0:00:30]} 8. Be3 {[%emt 0:00:30]} f6 {[%emt 0:00:30]} 9. Qb3 {[%emt 0:00:30]} a6 {[%emt 0:00:30]} 10. Ne2 {[%emt 0:00:30]} b5 {[%emt 0:00:30]} 11. Ng3 {[%emt 0:00:30]} Nxg3 {[%emt 0:00:30]} 12. hxg3 {[%emt 0:00:30]} f5 {[%emt 0:00:30]} 13. g4 {[%emt 0:00:30]} e6 {[%emt 0:00:30]} 14. gxf5 {[%emt 0:00:30]} exf5 {[%emt 0:00:30]} 15. g4 {[%emt 0:00:30]} Na5 {[%emt 0:00:30]} 16. Qd1 {[%emt 0:00:30]} Bxa3 {[%emt 0:00:30]} 17. bxa3 {[%emt 0:00:30]} O-O {[%emt 0:00:30]} 18. Bh6 {[%emt 0:00:30]} Re8+ {[%emt 0:00:30]} 19. Kf1 {[%emt 0:00:30]} fxg4 {[%emt 0:00:30]} 20. Qd2 {[%emt 0:00:30]} Qf6 {[%emt 0:00:30]} 21. Qf4 {[%emt 0:00:30]} Qxf4 {[%emt 0:00:30]} 22. Bxf4 {[%emt 0:00:30]} Bd7 {[%emt 0:00:30]} 23. Kg2 {[%emt 0:00:30]} Rac8 {[%emt 0:00:30]} 24. Rac1 {[%emt 0:00:30]} Nc4 {[%emt 0:00:30]} 25. Rh6 {[%emt 0:00:30]} Rf8 {[%emt 0:00:30]} 26. Bg3 {[%emt 0:00:30]} Bf5 {[%emt 0:00:30]} 27. Bxf5 {[%emt 0:00:30]} Rxf5 {[%emt 0:00:30]} 28. Rch1 {[%emt 0:00:30]} Rf7 {[%emt 0:00:30]} 29. R1h4 {[%emt 0:00:30]} Re8 {[%emt 0:00:30]} 30. Rxg4 {[%emt 0:00:30]} Re2 {[%emt 0:00:30]} 31. Kh3 {[%emt 0:00:30]} Rxa2 {[%emt 0:00:30]} 32. Rh5 {[%emt 0:00:30]} Rd7 {[%emt 0:00:30]} 33. Rgg5 {[%emt 0:00:30]} Nb6 {[%emt 0:00:30]} 34. f4 {[%emt 0:00:30]} Kf8 {[%emt 0:00:30]} 35. Rh4 {[%emt 0:00:30]} Rf7 {[%emt 0:00:30]} 36. f5 {[%emt 0:00:30]} Rxf5 {[%emt 0:00:30]} 37. Rxf5+ {[%emt 0:00:30]} gxf5 {[%emt 0:00:30]} 38. Rxh7 {[%emt 0:00:30]} Rxa3 {[%emt 0:00:30]} 39. Rc7 {[%emt 0:00:30]} Nc4 {[%emt 0:00:30]} 40. Rxc4 {[%emt 0:00:30]} Rb3 {[%emt 0:00:30]} 41. Rc7 {[%emt 0:00:30]} Ke8 {[%emt 0:00:30]} 42. Kh4 {[%emt 0:00:30]} a5 {[%emt 0:00:30]} 43. Bd6 {[%emt 0:00:30]} Kd8 {[%emt 0:00:30]} 44. Kg5 {[%emt 0:00:30]} a4 {[%emt 0:00:30]} 45. Kxf5 {[%emt 0:00:30]} a3 {[%emt 0:00:30]} 46. Ra7 {[%emt 0:00:30]} Rxc3 {[%emt 0:00:30]} 47. Ke6 {[%emt 0:00:30]} b4 {[%emt 0:00:30]} 48. Ra8+ {[%emt 0:00:30]} Rc8 {[%emt 0:00:30]} 49. Rxc8+ {[%emt 0:00:30]} Kxc8 {[%emt 0:00:30]} 50. Bxb4 {[%emt 0:00:30]} a2 {[%emt 0:00:30]} 51. Bc3 {[%emt 0:00:30]} Kc7 {[%emt 0:00:30]} 52. Kxd5 {[%emt 0:00:30]} Kb6 {[%emt 0:00:30]} 53. Kc4 {[%emt 0:00:30]} Kc6 {[%emt 0:00:30]} 54. Kb3 {[%emt 0:00:30]} Kb5 {[%emt 0:00:30]} 55. Kxa2 {[%emt 0:00:30]} Kc4 {[%emt 0:00:30]} 56. Kb2 {[%emt 0:00:30]} Kd5 {[%emt 0:00:30]} 57. Kb3 {[%emt 0:00:30]} Kc6 {[%emt 0:00:30]} 58. Kc4 {[%emt 0:00:30]} Kd6 {[%emt 0:00:30]} 59. d5 {[%emt 0:00:30]} Kd7 {[%emt 0:00:30]} 60. Be5 {[%emt 0:00:30]} Ke7 {[%emt 0:00:30]} 61. Kb5 {[%emt 0:00:30]} Kd7 {[%emt 0:00:30]} 62. Kb6 {[%emt 0:00:30]} Kd8 {[%emt 0:00:30]} 63. Kc6 {[%emt 0:00:30]} Kc8 {[%emt 0:00:30]} 64. d6 {[%emt 0:00:30]} Kd8 {[%emt 0:00:30]} 65. Bf6+ {[%emt 0:00:30]} 1-0

[Event "Fall GM Norm Invitational 2020"]
[Site "Charlotte"]
[Date "2020.10.04"]
[Round "7.1"]
[White "Liang, Jason"]
[Black "Gauri, Shankar"]
[Result "0-1"]
[ECO "C65"]
[WhiteElo "2367"]
[BlackElo "2353"]
[Annotator "ChessBase"]
[PlyCount "136"]
[EventDate "2020.09.30"]
[EventType "tourn"]
[EventCountry "USA"]
[SourceTitle "playchess.com"]
[Source "ChessBase"]
[SourceQuality "1"]
[TimeControl "5400+30"]

1. e4 {[%emt 1:30:30]} e5 {[%emt 1:30:30]} 2. Nf3 {[%emt 0:00:30]} Nc6 {[%emt 0:00:30]} 3. Bb5 {[%emt 0:00:30]} Nf6 {[%emt 0:00:30]} 4. d3 {[%emt 0:00:30]} Bc5 {[%emt 0:00:30]} 5. Bxc6 {[%emt 0:00:30]} dxc6 {[%emt 0:00:30]} 6. Qe2 {[%emt 0:00:30]} Qe7 {[%emt 0:00:30]} 7. Be3 {[%emt 0:00:30]} Nd7 {[%emt 0:00:30]} 8. Nbd2 {[%emt 0:00:30]} a5 {[%emt 0:00:30]} 9. O-O {[%emt 0:00:30]} O-O {[%emt 0:00:30]} 10. a3 {[%emt 0:00:30]} Bd6 {[%emt 0:00:30]} 11. Rfd1 {[%emt 0:00:30]} Re8 {[%emt 0:00:30]} 12. Nf1 {[%emt 0:00:30]} c5 {[%emt 0:00:30]} 13. Ng3 {[%emt 0:00:30]} g6 {[%emt 0:00:30]} 14. h3 {[%emt 0:00:30]} Nf8 {[%emt 0:00:30]} 15. Nh2 {[%emt 0:00:30]} f5 {[%emt 0:00:30]} 16. exf5 {[%emt 0:00:30]} gxf5 {[%emt 0:00:30]} 17. Bd2 {[%emt 0:00:30]} Ng6 {[%emt 0:00:30]} 18. Re1 {[%emt 0:00:30]} Bd7 {[%emt 0:00:30]} 19. Qh5 {[%emt 0:00:30]} Rf8 {[%emt 0:00:30]} 20. Nf3 {[%emt 0:00:30]} f4 {[%emt 0:00:30]} 21. Ne4 {[%emt 0:00:30]} Qg7 {[%emt 0:00:30]} 22. Nh2 {[%emt 0:00:30]} Rf5 {[%emt 0:00:30]} 23. Qe2 {[%emt 0:00:30]} Raf8 {[%emt 0:00:30]} 24. Nf3 {[%emt 0:00:30]} Rh5 {[%emt 0:00:30]} 25. Kh2 {[%emt 0:00:30]} Bg4 {[%emt 0:00:30]} 26. Qf1 {[%emt 0:00:30]} Kh8 {[%emt 0:00:30]} 27. Ng1 {[%emt 0:00:30]} f3 {[%emt 0:00:30]} 28. Ng3 {[%emt 0:00:30]} fxg2 {[%emt 0:00:30]} 29. Qxg2 {[%emt 0:00:30]} Rh4 {[%emt 0:00:30]} 30. Ne4 {[%emt 0:00:30]} Be7 {[%emt 0:00:30]} 31. Re3 {[%emt 0:00:30]} Nf4 {[%emt 0:00:30]} 32. Qf1 {[%emt 0:00:30]} Be6 {[%emt 0:00:30]} 33. Rg3 {[%emt 0:00:30]} Qh6 {[%emt 0:00:30]} 34. Re1 {[%emt 0:00:30]} Qh5 {[%emt 0:00:30]} 35. Ree3 {[%emt 0:00:30]} b6 {[%emt 0:00:30]} 36. b3 {[%emt 0:00:30]} h6 {[%emt 0:00:30]} 37. a4 {[%emt 0:00:30]} Kh7 {[%emt 0:00:30]} 38. Bc1 {[%emt 0:00:30]} Rf5 {[%emt 0:00:30]} 39. Bb2 {[%emt 0:00:30]} Qf7 {[%emt 0:00:30]} 40. Rg4 {[%emt 0:00:30]} Ng6 {[%emt 0:00:30]} 41. Reg3 {[%emt 0:00:30]} Rxg4 {[%emt 0:00:30]} 42. hxg4 {[%emt 0:00:30]} Rf4 43. Qe2 {[%emt 0:00:30]} Bh4 {[%emt 0:01:00]} 44. Rg2 {[%emt 0:00:30]} Qd7 {[%emt 0:00:30]} 45. f3 {[%emt 0:00:30]} Rf8 {[%emt 0:00:30]} 46. Nh3 {[%emt 0:00:30]} Qf7 {[%emt 0:00:30]} 47. Nd2 {[%emt 0:00:30]} Bd5 {[%emt 0:00:30]} 48. Ng1 {[%emt 0:00:30]} Nf4 {[%emt 0:00:30]} 49. Qxe5 {[%emt 0:00:30]} Nxg2 {[%emt 0:00:30]} 50. Kxg2 {[%emt 0:00:30]} Re8 {[%emt 0:00:30]} 51. Qh2 {[%emt 0:00:30]} Bg5 {[%emt 0:00:30]} 52. Ne4 {[%emt 0:00:30]} Bxe4 {[%emt 0:00:30]} 53. dxe4 {[%emt 0:00:30]} Bf4 {[%emt 0:00:30]} 54. Qh4 {[%emt 0:00:30]} Bg5 {[%emt 0:00:30]} 55. Qg3 {[%emt 0:00:30]} Rd8 {[%emt 0:00:30]} 56. Nh3 {[%emt 0:00:30]} Rd2+ {[%emt 0:00:30]} 57. Kf1 {[%emt 0:00:30]} Bh4 {[%emt 0:00:30]} 58. Qf4 {[%emt 0:00:30]} Qxf4 {[%emt 0:00:30]} 59. Nxf4 {[%emt 0:00:30]} Rf2+ {[%emt 0:00:30]} 60. Kg1 {[%emt 0:00:30]} Rxf3 {[%emt 0:00:30]} 61. Nd5 {[%emt 0:00:30]} Rg3+ {[%emt 0:00:30]} 62. Kh2 {[%emt 0:00:30]} Rxg4 {[%emt 0:00:30]} 63. Kh3 {[%emt 0:00:30]} Rxe4 {[%emt 0:00:30]} 64. Nxc7 {[%emt 0:00:30]} Bd8 {[%emt 0:00:30]} 65. Nb5 {[%emt 0:00:30]} Re2 {[%emt 0:00:30]} 66. Na3 {[%emt 0:00:30]} h5 {[%emt 0:00:30]} 67. Bc1 {[%emt 0:00:30]} Bc7 {[%emt 0:00:30]} 68. Kh4 {[%emt 0:00:30]} Kg6 {[%emt 0:00:30]} 0-1